fUSD/lending_fUSD_20240708
["ID","MTS","AMOUNT","RATE_DAILY","PERIOD"]
[331440735,1720411962467,49404.61626165,0.00011199,2]
[331440736,1720411986832,380.65355487,0.00011199,2]
[331440737,1720412035875,319.28013051,0.00011199,2]
[331440738,1720412057578,550.94720927,0.00011199,2]
[331440739,1720412147463,658.3771383,0.00011199,2]
[331440740,1720412227794,464.54602431,0.00011199,2]
[331440741,1720412312749,155.35944843,0.00011199,2]
[331440742,1720412328542,244.49868077,0.00011199,2]
[331440743,1720412350799,361.93,9.853e-05,2]
[331440744,1720412443940,483.44679723,0.00011199,2]
[331440745,1720412488577,612.13359814,0.00011199,2]
[331440746,1720412653772,400.0,0.00011199,2]
[331440760,1720412916226,1264.59447785,0.00011199,2]
[331440761,1720412935926,343.83,9.923e-05,2]
[331440762,1720412935994,959.65007813,0.00011199,2]
[331440763,1720412949408,1138.39880609,0.00011199,2]
[331440782,1720413032515,-3264.51941235,0.00011834,2]
[331440784,1720413032529,-2655.26058765,0.00011834,2]
[331440786,1720413032539,-172.46,0.00011834,2]
[331440787,1720413032550,-250.0,0.00011869,2]
[331440788,1720413032560,-1000.0,0.00011869,2]
[331440789,1720413032571,-171.37,0.00011935,2]
[331440790,1720413032580,-300.0,0.00012054,2]
[331440792,1720413032926,-3483.80278531,0.00012055,2]
[331440793,1720413032951,-3168.35,0.00012055,2]
[331440794,1720413032967,-627.82029043,0.00012055,2]
[331440795,1720413032979,-16848.91692426,0.00012055,2]
[331440796,1720413032990,-343.83,0.00012187,2]
[331440797,1720413032999,-151.35687415,0.00012205,2]
[331440798,1720413033009,-164.97,0.00012267,2]
[331440799,1720413033018,-838.28,0.000123,2]
[331440800,1720413033029,-164.97,0.00012328,2]
[331440801,1720413033039,-178.22,0.00012352,2]
[331440802,1720413033049,-499.99,0.00012488,2]
[331440803,1720413033058,-8572.21970111,0.00012488,2]
[331440809,1720413038298,-9604.72699736,0.00012488,2]
[331440811,1720413038310,-2014.51104555,0.00012488,2]
[331440813,1720413038319,-150.0,0.00012717,2]
[331440815,1720413038329,-150.0,0.00012726,2]
[331440817,1720413038338,-150.0,0.00012728,2]
[331440819,1720413038348,-385.96925274,0.00012733,2]
[331440821,1720413038357,-155.47158257,0.00012741,2]
[331440823,1720413038367,-150.0,0.00012753,2]
[331440825,1720413038376,-150.0,0.0001277,2]
[331440827,1720413038386,-150.0,0.00012776,2]
[331440829,1720413038395,-150.0,0.00012779,2]
[331440831,1720413038405,-58.15400611,0.00012786,2]
[331440833,1720413038419,-91.84599389,0.00012786,2]
[331440835,1720413038429,-150.64423964,0.00012786,2]
[331440837,1720413038439,-150.0,0.00012799,2]
[331440839,1720413038449,-1078.6642,0.000128,2]
[331440841,1720413038460,-150.0,0.00012801,2]
[331440843,1720413038469,-150.0,0.00012815,2]
[331440845,1720413038479,-150.0,0.00012817,2]
[331440847,1720413038488,-150.0,0.00012818,2]
[331440849,1720413038498,-150.0,0.00012864,2]
[331440851,1720413038507,-323.35911,0.0001287,2]
[331440853,1720413038517,-150.0,0.00012871,2]
[331440855,1720413038526,-150.0,0.00012878,2]
[331440857,1720413038536,-150.0,0.00012884,2]
[331440859,1720413038545,-5402.3655,0.0001289,2]
[331440861,1720413038555,-150.0,0.00012891,2]
[331440863,1720413038564,-827.85,0.00012893,2]
[331440865,1720413038574,-11990.31,0.00012893,2]
[331440867,1720413038583,-500.0,0.00012896,2]
[331440869,1720413038593,-150.0,0.00012898,2]
[331440871,1720413038603,-25000.0,0.000129,2]
[331440873,1720413038613,-1000.0,0.000129,2]
[331440875,1720413038623,-68022.5205,0.000129,2]
[331440877,1720413038634,-167.81660398,0.000129,2]
[331440879,1720413038646,-1000.0,0.000129,2]
[331440881,1720413038656,-178.45990259,0.000129,2]
[331440883,1720413038665,-182.34687994,0.000129,2]
[331440885,1720413038675,-152.17198359,0.000129,2]
[331440922,1720413039064,-1005.0,0.000129,2]
[331440924,1720413039081,-695.70510693,0.000129,2]
[331440926,1720413039092,-3987.8522409,0.000129,2]
[331440928,1720413039104,-152.17198358,0.00012908,2]
[331440930,1720413039114,-150.0,0.00012915,2]
[331440932,1720413039124,-152.17198358,0.00012915,2]
[331440934,1720413039134,-150.0,0.00012921,2]
[331440936,1720413039143,-150.0,0.00012933,2]
[331440938,1720413039153,-150.0,0.00012939,2]
[331440940,1720413039163,-150.0,0.00012941,2]
[331440942,1720413039173,-150.0,0.0001296,2]
[331440944,1720413039183,-150.0,0.00012966,2]
[331440946,1720413039194,-1000.0,0.0001297,2]
[331440948,1720413039204,-1000.0,0.0001297,2]
[331440950,1720413039217,-1000.0,0.0001297,2]
[331440952,1720413039227,-1000.0,0.0001297,2]
[331440954,1720413039238,-1000.0,0.0001297,2]
[331440956,1720413039248,-1917.27539911,0.0001297,2]
[331440958,1720413039259,-500.0,0.0001297,2]
[331440959,1720413039268,-500.0,0.0001297,2]
[331440962,1720413039279,-500.0,0.0001297,2]
[331440963,1720413039289,-500.0,0.0001297,2]
[331440965,1720413039299,-688.16685693,0.0001297,2]
[331440968,1720413039310,-150.0,0.00012979,2]
[331440970,1720413039320,-11533.28923079,0.00012989,2]
[331440972,1720413039333,-1797.35496313,0.00012989,2]
[331440986,1720413039472,-10312.64728852,0.00012989,2]
[331440988,1720413039484,-560.74650949,0.00012989,2]
[331440990,1720413039496,-7907.14989095,0.00012989,2]
[331440992,1720413039507,-298.21104625,0.0001299,2]
[331440993,1720413039517,-271.99671013,0.0001299,2]
[331440994,1720413039527,-1514.68720109,0.0001299,2]
[331440995,1720413039539,-2651.74150621,0.0001299,2]
[331440996,1720413039549,-4253.08821558,0.0001299,2]
[331441020,1720413040970,-1748.56626615,0.0001299,2]
[331441021,1720413040982,-1120.0285415,0.0001299,2]
[331441022,1720413041059,-290.16,0.0001299,2]
[331441031,1720413043303,-1006.3525,0.0001299,2]
[331441032,1720413043433,-1006.62630079,0.0001299,2]
[331441033,1720413043446,-352.72799642,0.0001299,2]
[331441034,1720413043572,-499.92342654,0.0001299,2]
[331441035,1720413043585,-421.401,0.0001299,2]
[331441036,1720413043625,-262.87233285,0.0001299,2]
[331441037,1720413044578,-1175.26064,0.0001299,2]
[331441038,1720413044590,-701.666667,0.0001299,2]
[331441039,1720413044601,-775.0,0.0001299,2]
[331441040,1720413044982,-1160.02723563,0.0001299,2]
[331441041,1720413044995,-1340.00000071,0.0001299,2]
[331441045,1720413046725,-905.72771757,0.00012733,2]
[331441046,1720413046779,-393.76878671,0.00012733,2]
[331441047,1720413046848,-896.2946775,0.00012733,2]
[331441048,1720413046860,-4172.91980678,0.00012733,2]
[331441050,1720413046871,-11764.77953752,0.00012733,2]
[331441052,1720413046904,-2367.94040928,0.00012733,2]
[331441053,1720413046916,-2849.692,0.00012733,2]
[331441054,1720413046926,-1652.40358811,0.00012733,2]
[331441055,1720413046950,-10391.97917367,0.00012733,2]
[331441056,1720413046965,-581.1791896,0.00012733,2]
[331441057,1720413046989,-526.66162884,0.00012733,2]
[331441058,1720413047034,-854.0,0.00012733,2]
[331441059,1720413047046,-3483.35685089,0.00012733,2]
[331441060,1720413047058,-1976.79,0.00012733,2]
[331441061,1720413047108,-400.0,0.00012733,2]
[331441062,1720413047119,-5656.3985907,0.00012733,2]
[331441063,1720413047128,-12924.16984403,0.0001299,2]
[331441064,1720413047138,-1098.52876815,0.00012999,2]
[331441065,1720413047147,-1230.0,0.00013,2]
[331441066,1720413047157,-188812.01595841,0.00013,2]
[331441067,1720413047168,-3879.44750531,0.00013,2]
[331441068,1720413047179,-483.87719183,0.00013,2]
[331441069,1720413075957,326.24,0.00010959,2]
[331441070,1720413117572,1308.14393241,0.00011199,2]
[331441071,1720413167938,10502.40982215,0.00026,120]
[331441072,1720413186567,24652.985916,0.00011199,2]
[331441073,1720413236280,155.51811222,0.00011199,2]
[331441074,1720413246855,384.0,0.00027,120]
[331441076,1720413299708,1101.38552534,0.00011199,2]
[331441077,1720413316377,1615.54793738,0.00011199,2]
[331441078,1720413319418,840.93344879,0.00011199,2]
[331441079,1720413386340,721.36501093,0.00011199,2]
[331441080,1720413397104,292.57856873,0.00011199,2]
[331441082,1720413449975,269.79567347,0.00011199,2]
[331441083,1720413455946,401.75,9.673e-05,2]
[331441084,1720413480479,168.98040525,0.00011199,2]
[331441085,1720413497801,185.11051679,0.00011199,2]
[331441086,1720413505726,194.99439859,0.00011199,2]
[331441087,1720413832100,208.31669417,0.00011199,2]
[331441088,1720413915164,155.64006629,0.00011199,2]
[331441106,1720414055343,381.66,9.343e-05,2]
[331441107,1720414102425,-390.92,0.00011266,2]
[331441108,1720414102455,-10064.34433458,0.00011268,2]
[331441109,1720414102572,-8587.24310537,0.00011268,2]
[331441110,1720414127518,-297.14,0.0001125,2]
[331441111,1720414127553,-5238.41256005,0.00011268,2]
[331441112,1720414127591,-171.72,0.00011371,2]
[331441113,1720414127624,-169.65,0.00011386,2]
[331441114,1720414127656,-250.0,0.00011399,2]
[331441115,1720414127689,-250.0,0.00011408,2]
[331441116,1720414127721,-200.0,0.00011419,2]
[331441117,1720414127752,-150.0,0.00011479,2]
[331441118,1720414127783,-1010.34176266,0.00011489,2]
[331441138,1720414233399,-211.28823734,0.00011489,2]
[331441139,1720414233410,-185.54,0.00011505,2]
[331441140,1720414233420,-467.99,0.00011505,2]
[331441141,1720414233429,-207.06,0.00011551,2]
[331441142,1720414233439,-207.06,0.00011583,2]
[331441143,1720414233450,-167.68,0.00011591,2]
[331441144,1720414233461,-195.9536709,0.00011596,2]
[331441145,1720414233474,-804.0463291,0.00011596,2]
[331441146,1720414233483,-499.99,0.00011596,2]
[331441147,1720414233493,-381.66,0.00011606,2]
[331441148,1720414233502,-207.06,0.00011615,2]
[331441149,1720414233512,-207.06,0.00011646,2]
[331441150,1720414233521,-207.06,0.00011678,2]
[331441151,1720414233531,-150.00000001,0.00011688,2]
[331441152,1720414233540,-207.06,0.0001171,2]
[331441153,1720414233549,-207.06,0.00011741,2]
[331441154,1720414233558,-207.06,0.00011773,2]
[331441155,1720414233567,-300.0,0.00011799,2]
[331441156,1720414233577,-17341.07221788,0.000118,2]
[331441157,1720414233586,-207.06,0.00011805,2]
[331441158,1720414233595,-207.06,0.00011836,2]
[331441159,1720414233604,-207.06,0.00011868,2]
[331441160,1720414233613,-207.06,0.000119,2]
[331441161,1720414233623,-207.06,0.00011931,2]
[331441162,1720414233632,-207.06,0.00011963,2]
[331441163,1720414233642,-207.06,0.00011995,2]
[331441164,1720414233651,-207.06,0.00012026,2]
[331441165,1720414233659,-207.06,0.00012058,2]
[331441166,1720414233668,-207.06,0.0001209,2]
[331441167,1720414233678,-207.06,0.00012121,2]
[331441168,1720414233687,-207.06,0.00012153,2]
[331441169,1720414233697,-791.208,0.00012217,2]
[331441170,1720414233706,-150.0,0.00012247,2]
[331441171,1720414233716,-150.0,0.00012274,2]
[331441172,1720414233725,-164.97,0.00012274,2]
[331441173,1720414233734,-164.97,0.00012274,2]
[331441174,1720414233742,-329.8,0.00012274,2]
[331441175,1720414233752,-346.66,0.00012278,2]
[331441176,1720414233761,-329.43,0.00012378,2]
[331441177,1720414233770,-2894.0,0.00012385,2]
[331441178,1720414233780,-424.1,0.00012411,2]
[331441179,1720414233789,-528.8,0.00012466,2]
[331441180,1720414233799,-424.61,0.00012466,2]
[331441181,1720414233808,-424.61,0.00012466,2]
[331441182,1720414233818,-528.8,0.00012466,2]
[331441183,1720414233827,-150.0,0.00012478,2]
[331441184,1720414233837,-164.97,0.00012478,2]
[331441185,1720414233847,-150.0,0.00012478,2]
[331441186,1720414233856,-164.97,0.00012478,2]
[331441187,1720414233866,-150.0,0.00012478,2]
[331441188,1720414233875,-150.0,0.00012478,2]
[331441189,1720414233884,-150.0,0.00012478,2]
[331441190,1720414233893,-355.08,0.00012478,2]
[331441191,1720414233903,-355.08,0.00012478,2]
[331441192,1720414233913,-424.61,0.00012493,2]
[331441193,1720414233922,-424.61,0.00012493,2]
[331441194,1720414233932,-1057.16,0.00012493,2]
[331441195,1720414233941,-300.0,0.00012548,2]
[331441196,1720414233951,-150.0,0.00012578,2]
[331441197,1720414233961,-164.97,0.00012578,2]
[331441198,1720414233970,-355.08,0.00012578,2]
[331441199,1720414233980,-174.49,0.00012609,2]
[331441200,1720414233989,-150.0,0.00012685,2]
[331441201,1720414233999,-259.96,0.00012685,2]
[331441202,1720414234008,-849.16,0.00012685,2]
[331441203,1720414234018,-150.0,0.00012685,2]
[331441204,1720414234027,-424.61,0.00012685,2]
[331441205,1720414234037,-150.0,0.00012685,2]
[331441206,1720414234046,-1056.87,0.00012685,2]
[331441207,1720414234056,-424.61,0.00012685,2]
[331441208,1720414234065,-528.8,0.00012685,2]
[331441209,1720414234074,-424.61,0.00012685,2]
[331441210,1720414234083,-300.0,0.00012685,2]
[331441211,1720414234092,-528.8,0.00012685,2]
[331441212,1720414234101,-424.61,0.00012685,2]
[331441213,1720414234110,-528.8,0.00012685,2]
[331441214,1720414234120,-424.61,0.00012685,2]
[331441215,1720414234129,-528.8,0.00012685,2]
[331441216,1720414234138,-242.7045,0.000127,2]
[331441217,1720414234147,-1078.6642,0.000127,2]
[331441218,1720414234156,-5529.8357,0.000127,2]
[331441219,1720414234166,-150.0,0.00012721,2]
[331441220,1720414234175,-150.0,0.00012731,2]
[331441221,1720414234185,-275.59319157,0.00012734,2]
[331441222,1720414234194,-150.0,0.00012739,2]
[331441223,1720414234204,-150.0,0.00012744,2]
[331441224,1720414234214,-150.0,0.00012747,2]
[331441225,1720414234223,-150.0,0.00012752,2]
[331441226,1720414234232,-150.0,0.0001276,2]
[331441227,1720414234242,-150.0,0.00012761,2]
[331441228,1720414234251,-197.8989823,0.00012766,2]
[331441229,1720414234261,-150.0,0.0001277,2]
[331441230,1720414234270,-273.90957045,0.00012771,2]
[331441231,1720414234280,-150.0,0.00012779,2]
[331441232,1720414234289,-150.0,0.00012782,2]
[331441233,1720414234298,-324.93960871,0.00012788,2]
[331441234,1720414234307,-301.35765127,0.00012796,2]
[331441235,1720414234316,-143982.11043196,0.000128,2]
[331441236,1720414234329,-390.84956002,0.000128,2]
[331441237,1720414234341,-1033.7,0.000128,2]
[331441238,1720414234351,-1183.25660705,0.000128,2]
[331441239,1720414234363,-2670.35134403,0.000128,2]
[331441240,1720414234379,-499.2998041,0.000128,2]
[331441241,1720414234390,-578.5596183,0.000128,2]
[331441242,1720414234401,-2302.97579559,0.000128,2]
[331441243,1720414234413,-2488.32184878,0.000128,2]
[331441244,1720414234425,-8063.21259017,0.000128,2]
[331441245,1720414234434,-352.18,0.000128,2]
[331441246,1720414234443,-1000.0,0.000128,2]
[331441247,1720414234455,-273.90957045,0.00012803,2]
[331441248,1720414234466,-150.0,0.00012804,2]
[331441249,1720414234475,-150.0,0.00012816,2]
[331441250,1720414234485,-150.0,0.00012817,2]
[331441251,1720414234494,-150.0,0.00012818,2]
[331441252,1720414234503,-150.0,0.00012826,2]
[331441253,1720414234512,-150.0,0.00012827,2]
[331441254,1720414234522,-150.0,0.00012833,2]
[331441255,1720414234531,-273.90957045,0.00012836,2]
[331441256,1720414234541,-150.0,0.0001284,2]
[331441257,1720414234550,-150.0,0.00012843,2]
[331441258,1720414234559,-150.0,0.00012847,2]
[331441259,1720414234568,-150.0,0.00012849,2]
[331441260,1720414234578,-150.0,0.00012851,2]
[331441261,1720414234587,-150.0,0.00012854,2]
[331441262,1720414234597,-150.0,0.0001286,2]
[331441263,1720414234606,-150.0,0.0001286,2]
[331441264,1720414234615,-150.0,0.00012861,2]
[331441265,1720414234624,-150.0,0.00012866,2]
[331441266,1720414234634,-273.90957045,0.00012868,2]
[331441267,1720414234643,-150.0,0.00012869,2]
[331441268,1720414234653,-67359.90965406,0.0001287,2]
[331441269,1720414234662,-2723.50342,0.0001287,2]
[331441270,1720414234671,-19659.27967921,0.0001288,2]
[331441271,1720414234682,-2219.9999988,0.0001288,2]
[331441272,1720414234693,-2289.26786308,0.0001288,2]
[331441273,1720414234704,-831.66201726,0.0001288,2]
[331441428,1720414239831,-695.70510694,0.000128,2]
[331441430,1720414239841,-578.5474202,0.0001288,2]
[331441440,1720414239935,-151666.21077392,0.0001288,2]
[331441442,1720414239945,-150.0,0.00012888,2]
[331441445,1720414239955,-182.34687994,0.0001289,2]
[331441446,1720414239964,-179.1953478,0.0001289,2]
[331441449,1720414239974,-827.85,0.00012893,2]
[331441450,1720414239983,-27714.58,0.00012893,2]
[331441452,1720414239992,-11990.31,0.00012893,2]
[331441454,1720414240002,-500.0,0.00012895,2]
[331441456,1720414240012,-500.0,0.00012896,2]
[331441459,1720414240022,-500.0,0.00012896,2]
[331441461,1720414240031,-1000.6725,0.00012899,2]
[331441462,1720414240042,-150.0,0.00012899,2]
[331441465,1720414240052,-11533.2892308,0.00012899,2]
[331441466,1720414240062,-259.12,0.000129,2]
[331441467,1720414240071,-250000.0,0.000129,2]
[331441468,1720414240081,-322.635,0.000129,2]
[331441469,1720414240091,-6543.2359,0.000129,2]
[331441470,1720414240100,-4070.7604,0.000129,2]
[331441471,1720414240109,-500.0,0.000129,2]
[331441473,1720414240119,-9206.0099,0.000129,2]
[331441475,1720414240130,-5402.3655,0.000129,2]
[331441477,1720414240143,-167.81484512,0.000129,2]
[331441479,1720414240152,-68022.5205,0.000129,2]
[331441481,1720414240162,-178.45990259,0.000129,2]
[331441483,1720414240172,-7500.0,0.000129,2]
[331441485,1720414240182,-150.0,0.000129,2]
[331441487,1720414240191,-150.0,0.000129,2]
[331441489,1720414240201,-273.90957045,0.000129,2]
[331441491,1720414240210,-170.99140817,0.000129,2]
[331441493,1720414240222,-3987.8522409,0.000129,2]
[331441494,1720414240232,-300.0,0.00012902,2]
[331441496,1720414240242,-220.51,0.00012904,3]
[331441498,1720414240252,-150.0,0.00012914,2]
[331441500,1720414240261,-150.0,0.00012925,2]
[331441502,1720414240271,-150.0,0.00012925,2]
[331441505,1720414240280,-150.0,0.00012934,2]
[331441507,1720414240290,-150.0,0.00012934,2]
[331441508,1720414240299,-150.0,0.00012934,2]
[331441510,1720414240308,-150.0,0.00012935,2]
[331441512,1720414240318,-150.0,0.00012944,2]
[331441514,1720414240327,-1514.59732339,0.00012952,2]
[331441517,1720414240337,-420.0,0.00012955,2]
[331441519,1720414240346,-150.0,0.00012959,2]
[331441520,1720414240356,-150.0,0.00012961,2]
[331441522,1720414240368,-150.0,0.00012963,2]
[331441524,1720414240378,-150.0,0.00012967,2]
[331441526,1720414240387,-500.0,0.0001297,2]
[331441528,1720414240397,-1000.0,0.0001297,2]
[331441530,1720414240406,-1000.0,0.0001297,2]
[331441532,1720414240417,-1000.0,0.0001297,2]
[331441534,1720414240426,-1000.0,0.0001297,2]
[331441536,1720414240436,-1000.0,0.0001297,2]
[331441538,1720414240445,-1917.27539911,0.0001297,2]
[331441540,1720414240456,-500.0,0.0001297,2]
[331441542,1720414240466,-500.0,0.0001297,2]
[331441544,1720414240475,-500.0,0.0001297,2]
[331441546,1720414240485,-688.16685693,0.0001297,2]
[331441548,1720414240495,-150.0,0.00012979,2]
[331441550,1720414240504,-150.0,0.0001298,2]
[331441552,1720414240514,-150.0,0.00012988,2]
[331441554,1720414240524,-1000.0,0.0001299,2]
[331441556,1720414240533,-3396.2647344,0.0001299,2]
[331441564,1720414240692,-1026.83723741,0.0001299,2]
[331441565,1720414240704,-46069.59195658,0.0001299,2]
[331441566,1720414240740,-3703.11371652,0.0001299,2]
[331441567,1720414240751,-1282.17343972,0.0001299,2]
[331441611,1720414244168,-695.70510693,0.0001285,2]
[331441612,1720414244177,-61910.60385007,0.0001299,2]
[331441613,1720414244187,-3032.0419911,0.0001299,2]
[331441614,1720414244196,-9775.3633991,0.0001299,2]
[331441615,1720414244205,-17214.8866605,0.0001299,2]
[331441616,1720414244215,-1098.52876815,0.00012999,2]
[331441617,1720414244228,-202.62426515,0.00012999,3]
[331441618,1720414244237,-3493.35598935,0.00013,2]
[331441619,1720414244422,-373.69109613,0.00013,2]
[331441620,1720414244434,-1953.69292807,0.00013,2]
[331441621,1720414244447,-1019.58309754,0.00013,2]
[331441622,1720414244458,-348.96036418,0.00013,2]
[331441623,1720414244470,-1559.39590236,0.00013,2]
[331441624,1720414244662,-123099.50147051,0.00013,2]
[331441625,1720414244674,-640.98643833,0.00013,2]
[331441626,1720414245053,-70074.81535755,0.00013,2]
[331441627,1720414245099,-1102.852144,0.00013,2]
[331441628,1720414245557,-565610.10745868,0.00013,2]
[331441629,1720414245569,-9367.57070698,0.00013,2]
[331441631,1720414246941,-365.94961032,0.00013,2]
[331441632,1720414246969,-487.27953807,0.00013,2]
[331441633,1720414247007,-942.71073215,0.00013,2]
[331441634,1720414248907,-710.16,0.00012247,2]
[331441635,1720414248916,-528.8,0.00012466,2]
[331441636,1720414248925,-1858.43383706,0.00013,2]
[331441637,1720414248936,-585.22668101,0.00013,2]
[331441638,1720414248996,-618.3903605,0.00013,2]
[331441639,1720414249007,-1183.07058718,0.00013,2]
[331441640,1720414249018,-669.03279969,0.00013,2]
[331441641,1720414249042,-1450.04333375,0.00013,2]
[331441642,1720414249054,-4028.06691352,0.00013,2]
[331441643,1720414249116,-730.77499999,0.00013,2]
[331441644,1720414249129,-556.3,0.00013,2]
[331441645,1720414249165,-451.23409272,0.00013,2]
[331441646,1720414249235,-2180.96,0.00013,2]
[331441647,1720414249246,-1377.525,0.00013,2]
[331441649,1720414374177,753.81950489,0.00011199,2]
[331441650,1720414479833,227.24934482,0.00011199,2]
[331441651,1720414673380,155.22188855,0.00011199,2]
[331441652,1720414868751,366.49,9.153e-05,2]
[331441653,1720414921886,899.04,0.00010989,2]
[331441654,1720414962460,250.0,0.00011023,2]
[331441655,1720414980951,227.24934482,0.00011199,2]
[331441660,1720415226373,248.22,0.00011134,2]
[331441661,1720415226638,248.22,0.00011164,2]
[331441662,1720415227217,248.22,0.00011195,2]
[331441670,1720415290414,227.24934482,0.00011199,2]
[331441673,1720415317272,-248.22,0.00011226,2]
[331441674,1720415317302,-248.22,0.00011256,2]
[331441675,1720415317333,-248.22,0.00011287,2]
[331441676,1720415317362,-248.22,0.00011317,2]
[331441677,1720415317392,-248.22,0.00011348,2]
[331441678,1720415317422,-248.22,0.00011378,2]
[331441679,1720415317452,-248.22,0.00011409,2]
[331441680,1720415317482,-366.49,0.00011417,2]
[331441681,1720415317512,-248.22,0.00011439,2]
[331441682,1720415317542,-49.50802696,0.0001147,2]
[331441684,1720415432839,-198.71197304,0.0001147,2]
[331441685,1720415432848,-248.22,0.00011501,2]
[331441686,1720415432858,-248.22,0.00011531,2]
[331441687,1720415432868,-30.05938069,0.00011562,2]
[331441688,1720415432879,-218.16061931,0.00011562,2]
[331441689,1720415432889,-248.22,0.00011592,2]
[331441690,1720415432899,-248.22,0.00011623,2]
[331441691,1720415432909,-248.22,0.00011653,2]
[331441692,1720415432920,-248.22,0.00011684,2]
[331441693,1720415432930,-166.04615262,0.00011686,2]
[331441694,1720415432939,-248.22,0.00011714,2]
[331441695,1720415432948,-2783.1497,0.00011786,2]
[331441696,1720415432958,-3778.91,0.0001179,2]
[331441697,1720415432967,-216.95993511,0.00011792,2]
[331441698,1720415432979,-83.04006489,0.00011792,2]
[331441699,1720415432989,-1578.98260397,0.00011793,2]
[331441700,1720415433000,-588.74678369,0.00011793,2]
[331441701,1720415433011,-1611.18061234,0.00011793,2]
[331441702,1720415433020,-397.99550622,0.00011796,2]
[331441703,1720415433030,-389.00967572,0.00011796,2]
[331441704,1720415433246,-2991.90481806,0.00011796,2]
[331441705,1720415433255,-3778.91,0.00011799,2]
[331441706,1720415433264,-3778.91,0.00011802,2]
[331441707,1720415433274,-3778.91,0.00011805,2]
[331441708,1720415433283,-499.99,0.00011805,2]
[331441709,1720415433293,-5805.36,0.00011805,2]
[331441710,1720415433303,-941.62,0.00011805,2]
[331441711,1720415433312,-3778.91,0.00011808,2]
[331441712,1720415433322,-827.85,0.00011808,2]
[331441713,1720415433332,-278.31377295,0.0001181,2]
[331441714,1720415433341,-3778.91,0.00011811,2]
[331441715,1720415433350,-3778.91,0.00011814,2]
[331441716,1720415433359,-3778.91,0.00011817,2]
[331441717,1720415433368,-3778.91,0.0001182,2]
[331441718,1720415433376,-3778.91,0.00011824,2]
[331441719,1720415433385,-3778.91,0.00011827,2]
[331441720,1720415433395,-3778.91,0.0001183,2]
[331441721,1720415433403,-3778.91,0.00011833,2]
[331441722,1720415433413,-3778.91,0.00011836,2]
[331441723,1720415433424,-3778.91,0.00011839,2]
[331441724,1720415433433,-3778.91,0.00011842,2]
[331441725,1720415433443,-3778.91,0.00011845,2]
[331441726,1720415433452,-3778.91,0.00011848,2]
[331441727,1720415433461,-1000.0,0.00011886,2]
[331441728,1720415433471,-1441.6,0.00012055,2]
[331441729,1720415433480,-528.8,0.00012378,2]
[331441730,1720415433489,-1088.25,0.00012378,2]
[331441731,1720415433498,-1057.38,0.00012578,2]
[331441732,1720415433507,-193.47,0.00012578,2]
[331441733,1720415433516,-500.0,0.000126,2]
[331441734,1720415433525,-12825.43245085,0.000126,2]
[331441735,1720415433702,-2065.60483936,0.000126,2]
[331441736,1720415433713,-2274.36,0.000126,2]
[331441737,1720415433723,-538.83738947,0.000126,2]
[331441794,1720415439272,-1520.60108001,0.000126,2]
[331441797,1720415439285,-302.52178472,0.000126,2]
[331441799,1720415439297,-454.12339656,0.000126,2]
[331441801,1720415439309,-1425.33982887,0.000126,2]
[331441803,1720415439322,-18368.85333016,0.000126,2]
[331441805,1720415439331,-300.3502,0.000126,2]
[331441806,1720415439342,-4844.435,0.000126,2]
[331441808,1720415439352,-488.776,0.000126,2]
[331441810,1720415439362,-6543.2359,0.000126,2]
[331441812,1720415439378,-963.4309,0.000126,2]